bitfinex-derivatives/quotes_SOLF0:USTF0_20241002
["timestamp","ask_amount","ask_price","bid_price","bid_amount"]
[1727902904188,27.23,141.03,140.93,3.67332]
[1727902905988,27.23,141.03,140.93,0.12502]
[1727902906196,27.23,141.0,140.93,0.12502]
[1727902906386,7.82,140.99,140.93,0.12502]
[1727902906587,3.5475,140.97,140.93,3.67332]
[1727902906894,7.82,140.99,140.93,0.12502]
[1727902907097,3.5473,140.98,140.93,0.12502]
[1727902907394,7.82,140.99,140.93,0.12502]
[1727902907787,7.82,140.99,140.93,3.67322]
[1727902907989,7.82,140.99,140.93,0.12502]
[1727902909400,3.5475,140.97,140.93,3.67322]
[1727902909697,7.82,140.99,140.93,0.12502]
[1727902909999,7.82,140.99,140.93,3.67332]
[1727902910000,3.5474,140.97,140.93,3.67332]
[1727902910191,7.82,140.99,140.93,0.12502]
[1727902911297,3.5475,140.97,140.93,3.67322]
[1727902911898,3.5476,140.96,140.93,3.67322]
[1727902912690,3.48278882,140.96,140.86,35.05]
[1727902912891,1.4293,140.95,140.87,3.76071521]
[1727902913101,3.5488,140.92,140.88,3.5495]
[1727902913697,26.2693,140.95,140.88,3.5495]
[1727902913900,17.02,140.93,140.87,0.12502]
[1727902914097,17.02,140.91,140.87,0.12502]
[1727902914302,3.5496,140.88,140.87,0.12502]
[1727902918212,1.3445,140.9,140.87,0.12502]
[1727902918396,4.8938,140.9,140.87,0.12502]
[1727902918701,1.3445,140.9,140.87,0.12502]
[1727902919104,4.8937,140.9,140.87,3.67472]
[1727902919303,1.3445,140.9,140.87,0.12502]
[1727902919610,3.5495,140.89,140.87,0.12502]
[1727902919802,1.3445,140.9,140.87,0.12502]
[1727902920209,3.5494,140.89,140.87,0.12502]
[1727902920720,1.3445,140.9,140.87,0.12502]
[1727902920915,4.8937,140.9,140.87,0.12502]
[1727902921106,1.3445,140.9,140.87,0.12502]
[1727902921411,1.3445,140.9,140.87,3.67472]
[1727902921816,1.4293,140.95,140.87,0.12502]
[1727902922109,2.795,140.95,140.87,0.12502]
[1727902922508,6.343,140.95,140.91,3.5488]
[1727902922705,6.343,140.95,140.88,3.47955007]
[1727902922909,3.5485,140.93,140.89,3.5492]
[1727902923111,2.795,140.95,140.88,3.60946085]
[1727902923314,2.795,140.95,140.89,7.82]
[1727902923522,3.5485,140.93,140.89,11.3692]
[1727902924316,4.1993,140.95,140.87,3.60669976]
[1727902924708,3.5482,140.94,140.9,3.5489]
[1727902924907,3.5482,140.94,140.87,3.60669976]
[1727902925317,4.1993,140.95,140.87,3.60669976]
[1727902925512,2.795,140.95,140.87,3.60669976]
[1727902925823,2.795,140.95,140.93,3.5482]
[1727902926018,6.343,140.95,140.9,7.82]
[1727902926524,2.795,140.95,140.87,5.01699976]
[1727902926719,3.5487,140.92,140.87,7.94502]
[1727902926920,3.5487,140.92,140.87,0.12502]
[1727902927421,3.5487,140.92,140.88,3.5495]
[1727902927625,3.5491,140.9,140.87,0.12502]
[1727902927820,27.26,140.94,140.87,0.12502]
[1727902928217,3.5486,140.92,140.87,0.12502]
[1727902928424,27.26,140.94,140.87,0.12502]
[1727902928825,3.5495,140.89,140.87,0.12502]
[1727902929721,3.5492,140.9,140.87,3.67472]
[1727902929927,27.26,140.94,140.87,0.12502]
[1727902930321,3.5492,140.9,140.87,3.67472]
[1727902930824,27.26,140.94,140.87,0.12502]
[1727902931030,3.5495,140.89,140.87,0.12502]
[1727902931230,27.26,140.91,140.81,94.16614299]
[1727902931434,27.26,140.91,140.82,7.82]
[1727902931624,3.55,140.87,140.84,3.5505]
[1727902931924,35.08,140.91,140.81,94.16614299]
[1727902931925,27.26,140.89,140.81,94.16614299]
[1727902932227,3.5505,140.85,140.82,3.551]
[1727902932431,2.6052,140.88,140.81,0.12502]
[1727902932832,3.5505,140.85,140.82,3.551]
[1727902933131,27.26,140.87,140.81,0.12502]
[1727902933529,3.5508,140.84,140.81,3.67622]
[1727902934730,1.3083,140.88,140.82,7.82]
[1727902934920,1.3658,140.92,140.82,7.82]
[1727902935430,27.26,140.91,140.82,7.82]
[1727902935621,7.82,140.9,140.81,0.12502]
[1727902936420,3.5497,140.88,140.85,3.5503]
[1727902937127,9.1361,140.9,140.84,3.5505]
[1727902937128,3.5499,140.87,140.84,3.5505]
[1727902937335,30.73275687,140.89,140.81,0.12502]
[1727902937636,27.26,140.89,140.81,0.12502]
[1727902938132,3.5507,140.84,140.81,3.67622]
[1727902938318,30.87768512,140.89,140.81,3.67622]
[1727902938519,27.26,140.84,140.79,1.001]
[1727902938723,2.7867,140.83,140.79,1.001]
[1727902939135,3.5512,140.82,140.79,1.001]
[1727902939436,2.7867,140.83,140.79,1.001]
[1727902939641,3.5515,140.81,140.79,1.001]
[1727902942320,2.7867,140.83,140.79,1.001]
[1727902942931,3.5513,140.82,140.79,4.5527]
[1727902943231,2.7867,140.83,140.79,1.001]
[1727902943624,6.3377,140.83,140.8,3.5515]
[1727902943824,1.3673,140.83,140.79,1.001]
[1727902944024,1.3673,140.83,140.82,3.5511]
[1727902944222,1.4193,140.85,140.79,8.801]
[1727902944421,0.12502,140.87,140.79,8.801]
[1727902944635,0.12502,140.87,140.84,3.5504]
[1727902944636,3.67502,140.87,140.84,3.5504]
[1727902944931,3.67502,140.87,140.79,8.801]
[1727902944932,0.12502,140.87,140.82,3.63734075]
[1727902945128,0.12502,140.87,140.8,28.6113]
[1727902945525,0.12502,140.87,140.86,3.5501]
[1727902949336,0.12502,140.93,140.92,3.5486]
[1727902950333,0.12502,140.93,140.92,7.11551924]
[1727902950540,0.12502,140.93,140.92,3.5486]
[1727902956856,0.12502,140.93,140.92,7.09702149]
[1727902957240,0.12502,140.93,140.92,3.5486]
[1727902958351,0.12502,140.99,140.92,30.87406073]
[1727902958547,0.12502,140.99,140.93,9.1838]
[1727902958849,0.12502,140.99,140.98,3.5471]
[1727902961350,0.12502,140.99,140.95,1.4175]
[1727902961561,0.12502,140.99,140.93,12.70241773]
[1727902962057,3.5471,140.98,140.94,3.5479]
[1727902962263,0.12502,140.99,140.93,12.68308127]
[1727902962451,3.67202,140.99,140.95,3.5477]
[1727902962762,3.67202,140.99,140.93,12.68308127]
[1727902963354,0.12502,140.99,140.93,12.68308127]
[1727902963945,0.12502,140.99,140.97,3.5472]
[1727902965752,0.12502,140.99,140.98,3.5471]
[1727902970457,1.12502,141.05,141.04,3.5456]
[1727902970968,1.0,141.07,141.03,17.03]
[1727902971169,1.0,141.07,141.06,3.5451]
[1727902975168,1.0,141.07,140.99,27.33502]
[1727902975367,1.0,141.07,141.0,7.78]
[1727902975558,1.0,141.07,141.01,3.48559916]
[1727902975969,1.0,141.07,141.04,3.5454]
[1727902976366,1.0,141.07,141.0,7.78]
[1727902976567,4.545,141.07,141.04,3.5455]
[1727902976873,1.0,141.07,141.04,3.5455]
[1727902977262,1.0,141.07,141.06,3.5451]
[1727902977863,1.0,141.07,141.05,3.5452]
[1727902978069,1.0,141.07,141.04,7.78]
[1727902978466,1.0,141.07,141.06,3.5451]
[1727902979061,1.0,141.07,141.02,7.78]
[1727902979262,1.0,141.07,141.01,7.78]
[1727902979475,1.0,141.07,141.02,3.60956202]
[1727902979878,1.0,141.07,141.05,3.5452]
[1727902980073,1.0,141.07,141.02,3.60956202]
[1727902980272,1.0,141.07,141.01,7.78]
[1727902981269,27.21,141.06,140.99,0.12502]
[1727902981471,1.3638,141.05,140.99,0.12502]
[1727902981876,3.5459,141.03,140.99,0.12502]
[1727902982077,3.5459,141.03,140.99,3.67172]
[1727902982279,3.5464,141.01,140.99,0.12502]
[1727902982573,27.21,141.04,140.95,97.52356993]
[1727902982779,3.5469,140.99,140.95,93.97586993]
[1727902982979,27.21,141.02,140.93,0.12502]
[1727902983167,7.78,141.03,140.93,3.69817353]
[1727902983475,7.78,141.04,140.94,27.21]
[1727902983873,3.546,141.03,140.94,27.21]
[1727902984272,3.546,141.03,140.94,30.75903935]
[1727902984474,3.546,141.03,140.98,3.5469]
[1727902984773,3.5456,141.04,140.95,7.78]
[1727902984972,9.26882,141.05,140.99,3.5468]
[1727902985475,3.5459,141.03,140.99,3.5468]
[1727902985983,3.5457,141.04,141.0,3.5464]
[1727902986782,3.5458,141.03,140.99,3.5467]
[1727902987581,9.26882,141.05,140.95,9.1793]
[1727902987773,3.5457,141.04,140.95,9.1793]
[1727902987979,9.26882,141.05,140.95,9.1793]
[1727902988173,3.5457,141.04,141.0,3.5465]
[1727902988684,9.26882,141.05,140.95,9.1793]
[1727902988883,3.5459,141.03,140.99,3.5467]
[1727902989282,3.5459,141.03,140.97,3.5472]
[1727902989485,12.77129787,141.05,140.95,9.1793]
[1727902989783,3.5462,141.02,140.95,9.1793]
[1727902989992,3.5462,141.02,140.98,3.547]
[1727902990185,9.26882,141.05,140.95,9.1793]
[1727902990489,3.546,141.03,140.99,3.5467]
[1727902992176,17.02,141.03,140.95,7.78]
[1727902992378,12.84435482,141.05,140.93,0.12502]
[1727902992379,17.02,141.01,140.93,0.12502]
[1727902992681,24.8,141.01,140.93,0.12502]
[1727902993178,3.547,140.99,140.95,3.5478]
[1727902993383,24.8,141.01,140.93,0.12502]
[1727902993587,2.6396,140.98,140.93,0.12502]
[1727902994087,17.02,140.95,140.87,7.90502]
[1727902994382,17.02,140.94,140.87,0.12502]
[1727902994790,7.78,140.93,140.87,0.12502]
[1727902994989,3.5493,140.9,140.87,0.12502]
[1727902995291,17.02,140.92,140.87,0.12502]
[1727902995487,3.5496,140.88,140.87,0.12502]
[1727902995675,7.78,140.89,140.82,1.001]
[1727902995877,1.3395,140.88,140.82,1.001]
[1727902996381,7.78,140.87,140.82,1.001]
[1727902996584,11.3301,140.87,140.82,4.552]
[1727902996782,7.78,140.87,140.82,4.552]
[1727902996978,1.3395,140.88,140.82,1.001]
[1727902997682,1.3395,140.88,140.85,3.5503]
[1727902998082,1.3395,140.88,140.82,1.001]
[1727902998286,1.3395,140.88,140.84,3.5505]
[1727902998484,1.3395,140.88,140.82,1.001]
[1727902998690,3.5504,140.85,140.82,1.001]
[1727902999389,1.3097,140.87,140.82,1.001]
[1727902999587,3.5501,140.86,140.82,4.5521]
[1727902999795,1.3097,140.87,140.82,1.001]
[1727903000689,1.3097,140.87,140.84,3.5504]
[1727903001300,1.3097,140.87,140.82,1.001]
[1727903001593,1.3097,140.87,140.83,3.5507]
[1727903001985,1.3097,140.87,140.82,1.001]
[1727903002187,1.3097,140.87,140.84,3.5506]
[1727903002687,1.3097,140.87,140.83,3.5508]
[1727903002886,1.3097,140.87,140.82,1.001]
[1727903002887,4.8597,140.87,140.82,1.001]
[1727903003493,3.5503,140.86,140.82,1.001]
[1727903003689,1.3097,140.87,140.82,1.001]
[1727903003888,7.78,140.86,140.82,1.001]
[1727903004203,3.5508,140.84,140.82,1.001]
[1727903004691,3.5509,140.83,140.81,0.12502]
[1727903004995,7.78,140.86,140.81,0.12502]
[1727903005186,3.552,140.79,140.77,1.001]
[1727903005387,7.76,140.81,140.77,1.001]
[1727903005700,1.3054,140.8,140.75,0.12502]
[1727903005886,3.5523,140.78,140.75,0.12502]
[1727903006087,1.3054,140.8,140.75,0.12502]
[1727903006295,1.3054,140.8,140.76,3.5525]
[1727903006495,1.3054,140.8,140.75,0.12502]
[1727903006803,1.0,140.85,140.75,0.12502]
[1727903006992,3.5512,140.82,140.75,0.12502]
[1727903007193,11.35669512,140.83,140.75,0.12502]
[1727903007594,11.3109,140.83,140.75,0.12502]
[1727903007897,1.4361,140.84,140.75,0.12502]
[1727903008101,7.76,140.85,140.76,27.26]
[1727903008302,27.26,140.88,140.78,27.26]
[1727903008303,12.78604776,140.88,140.78,27.26]
[1727903008496,4.98472,140.87,140.79,3.50507314]
[1727903008700,1.43472,140.87,140.78,36.441]
[1727903009100,4.98482,140.87,140.82,3.5509]
[1727903009303,4.98482,140.87,140.79,3.58533115]
[1727903009600,1.43472,140.87,140.85,3.5502]
[1727903009798,1.43472,140.87,140.81,3.50720389]
[1727903009998,1.43472,140.87,140.78,36.441]
[1727903010295,1.43472,140.87,140.8,27.26]
[1727903010296,0.12502,140.87,140.8,27.26]
[1727903010598,0.12502,140.87,140.86,3.5501]
[1727903011491,0.12502,140.87,140.83,7.76]
[1727903011696,0.12502,140.87,140.85,3.5503]
[1727903011999,0.12502,140.87,140.83,7.76]
[1727903012307,0.12502,140.87,140.86,3.5501]
[1727903014599,0.12502,140.87,140.86,7.05783395]
[1727903015303,0.12502,140.93,140.92,3.5486]
[1727903015809,0.12502,140.99,140.92,27.26]
[1727903015996,0.12502,140.99,140.94,3.5481]
[1727903016205,0.12502,140.99,140.92,27.26]
[1727903017014,0.12502,140.99,140.95,3.5478]
[1727903017203,0.12502,140.99,140.9,7.76]
[1727903017815,0.12502,140.99,140.87,28.68882]
[1727903017999,35.02,140.98,140.88,7.76]
[1727903018204,3.5478,140.95,140.9,3.549]
[1727903018409,35.02,140.98,140.9,3.549]
[1727903019010,3.548,140.95,140.9,3.549]
[1727903019699,3.548,140.95,140.88,7.76]
[1727903019700,35.02,140.98,140.88,7.76]
[1727903019905,0.12502,140.99,140.92,27.26]
[1727903020106,0.12502,140.99,140.92,35.02]
[1727903020308,0.12502,140.99,140.96,3.5474]
[1727903021412,0.12502,140.99,140.92,35.02]
[1727903021618,0.12502,140.99,140.92,7.76]
[1727903021804,0.12502,140.99,140.94,3.5479]
[1727903022112,3.67202,140.99,140.94,3.5479]
[1727903022510,3.5471,140.98,140.94,3.5479]
[1727903024415,3.5474,140.97,140.93,3.5482]
[1727903024711,0.12502,140.99,140.91,7.76]
[1727903025310,0.12502,140.99,140.96,3.5474]
[1727903026213,3.67192,140.99,140.96,3.5474]
[1727903026413,3.67192,140.99,140.95,3.5477]
[1727903026717,0.12502,140.99,140.95,3.5477]
[1727903026909,0.12502,140.99,140.88,1.3832]
[1727903027111,27.26,140.97,140.88,9.1432]
[1727903027814,7.88502,140.99,140.88,9.1432]
[1727903028524,0.12502,140.99,140.9,27.26]
[1727903028718,0.12502,140.99,140.92,3.5484]
[1727903028918,0.12502,140.99,140.92,7.76]
[1727903030419,0.12502,140.99,140.88,1.3832]
[1727903030420,0.12502,140.99,140.9,7.76]
[1727903030627,3.5477,140.96,140.92,3.5483]
[1727903031015,0.12502,140.99,140.89,7.76]
[1727903031218,3.5477,140.96,140.92,3.5486]
[1727903032633,0.12502,140.99,140.92,3.5486]
[1727903032831,3.5479,140.95,140.92,3.5486]
[1727903033131,0.12502,140.99,140.89,7.76]
[1727903033132,35.02,140.97,140.89,7.76]
[1727903033320,38.5675,140.97,140.89,7.76]
[1727903033725,3.5476,140.96,140.91,3.5487]
[1727903034024,3.5476,140.96,140.89,7.76]
[1727903034428,3.5476,140.96,140.92,3.5485]
[1727903035028,3.5479,140.95,140.92,3.5485]
[1727903035532,3.5479,140.95,140.91,3.5488]
[1727903036026,35.02,140.97,140.92,3.5486]
[1727903036231,3.5477,140.96,140.92,3.5486]
[1727903036736,3.5479,140.95,140.92,3.5486]
[1727903036918,35.02,140.97,140.92,3.5486]
[1727903037323,3.5476,140.96,140.93,3.5483]
[1727903037520,3.5476,140.96,140.89,7.76]
[1727903038035,3.5476,140.96,140.92,3.5485]
[1727903038528,0.12502,140.99,140.89,35.02]
[1727903038734,0.12502,140.99,140.91,27.26]
[1727903039133,0.12502,140.99,140.96,3.5474]
[1727903040742,0.12502,140.99,140.94,3.56094062]
[1727903040945,0.12502,140.99,140.98,3.5471]
[1727903041240,1.0,141.0,140.98,27.26]
[1727903041838,1.0,141.0,140.95,27.26]
[1727903042141,1.0,141.0,140.95,11.36053795]
[1727903042447,3.547,140.99,140.95,11.2878]
[1727903043142,3.5473,140.98,140.94,3.548]
[1727903043442,3.46054749,140.99,140.93,0.12502]
[1727903043634,1.3618,140.99,140.93,0.12502]
[1727903043846,3.60685986,140.98,140.93,0.12502]
[1727903044338,3.5477,140.96,140.93,0.12502]
[1727903044849,3.60685986,140.98,140.93,0.12502]
[1727903044850,7.74,140.97,140.93,0.12502]
[1727903045353,11.2875,140.97,140.93,3.67332]
[1727903045641,7.74,140.97,140.93,3.67332]
[1727903045852,3.5478,140.96,140.93,0.12502]
[1727903046146,27.26,140.96,140.93,0.12502]
[1727903046350,3.5481,140.94,140.93,0.12502]
[1727903046547,27.26,140.96,140.87,0.12502]
[1727903047140,27.26,140.93,140.87,0.12502]
[1727903047442,35.0,140.93,140.87,0.12502]
[1727903048340,27.26,140.91,140.87,0.12502]
[1727903048546,27.26,140.91,140.81,0.12502]
[1727903048547,3.5504,140.85,140.81,0.12502]
[1727903048845,3.5504,140.85,140.82,3.551]
[1727903049446,7.05988711,140.88,140.81,0.12502]
[1727903050035,7.74,140.89,140.81,0.12502]
[1727903050640,7.74,140.89,140.85,3.5502]
[1727903050835,3.7712,140.92,140.81,0.12502]
[1727903050836,11.5112,140.92,140.81,0.12502]
[1727903051346,3.5494,140.89,140.81,0.12502]
[1727903051550,3.55768622,140.9,140.81,0.12502]
[1727903051751,3.5494,140.89,140.84,3.5505]
[1727903051946,3.49626723,140.9,140.84,3.5505]
[1727903052146,1.4177,140.91,140.86,3.55]
[1727903052350,4.9667,140.91,140.81,27.38502]
[1727903052851,1.4177,140.91,140.86,3.55]
[1727903053046,1.4177,140.91,140.81,27.38502]
[1727903053241,2.7712,140.92,140.81,27.38502]
[1727903053438,0.12502,140.93,140.84,27.26]
[1727903053635,0.12502,140.93,140.86,27.26]
[1727903053839,0.12502,140.93,140.87,9.0638]
[1727903054040,0.12502,140.93,140.92,3.5486]
[1727903054247,7.86502,140.99,140.91,3.4610928]
[1727903054440,0.12502,140.99,140.91,7.74]
[1727903054637,0.12502,140.99,140.92,3.53172735]
[1727903055037,0.12502,140.99,140.93,27.26]
[1727903055243,0.12502,140.99,140.94,1.4013]
[1727903055445,0.12502,140.99,140.95,7.74]
[1727903055751,0.12502,140.99,140.97,3.5471]
[1727903056050,0.12502,140.99,140.95,7.74]
[1727903056640,0.12502,140.99,140.9,27.26]
[1727903056842,3.67192,140.99,140.94,3.5479]
[1727903057046,0.12502,140.99,140.92,7.74]
[1727903057642,0.12502,140.99,140.92,11.27301979]
[1727903057843,0.12502,140.99,140.92,7.74]
[1727903058056,0.12502,140.99,140.9,35.0]
[1727903059051,3.67192,140.99,140.94,3.5479]
[1727903059349,30.91520202,140.99,140.89,1.4013]
[1727903059560,30.91520202,140.99,140.9,3.5489]
[1727903059561,3.548,140.95,140.9,3.5489]
[1727903059852,30.91520202,140.99,140.89,9.1413]
[1727903059853,7.74,140.98,140.89,9.1413]
[1727903060554,3.5482,140.94,140.89,9.1413]
[1727903060941,3.5482,140.94,140.89,12.6905]
[1727903061148,7.74,140.98,140.89,9.1413]
[1727903061348,3.5479,140.95,140.89,9.1413]
[1727903061554,3.5479,140.95,140.91,3.5487]
[1727903061754,3.5476,140.96,140.89,9.1413]
[1727903062051,7.74,140.98,140.91,3.5488]
[1727903062251,3.548,140.95,140.91,3.5488]
[1727903063555,3.548,140.95,140.92,3.5486]
[1727903063759,3.548,140.95,140.89,9.1413]
[1727903064058,7.74,140.98,140.89,9.1413]
[1727903064059,3.5481,140.94,140.91,3.5487]
[1727903065052,7.74,140.98,140.89,9.1413]
[1727903065356,3.5477,140.96,140.89,9.1413]
[1727903065560,7.74,140.98,140.89,9.1413]
[1727903065779,3.5481,140.95,140.91,3.5486]
[1727903066145,7.74,140.98,140.89,9.1413]
[1727903067448,3.548,140.95,140.89,9.1413]
[1727903067645,7.74,140.98,140.89,7.74]
[1727903067646,27.26,140.96,140.89,7.74]
[1727903067853,27.26,140.96,140.87,0.12502]
[1727903068365,30.0997,140.96,140.87,0.12502]
[1727903069458,30.0997,140.96,140.88,3.5495]
[1727903069850,30.0997,140.96,140.89,3.5493]
[1727903070052,30.0997,140.96,140.87,0.12502]
[1727903070566,3.5482,140.94,140.91,3.5488]
[1727903071165,3.5485,140.93,140.9,3.549]
[1727903071965,2.8397,140.96,140.88,3.47763658]
[1727903072656,2.8397,140.96,140.92,3.5485]
[1727903072855,8.8797,140.96,140.87,0.12502]
[1727903073058,36.1397,140.96,140.87,0.12502]
[1727903073358,27.26,140.94,140.87,3.67472]
[1727903073561,27.26,140.92,140.87,0.12502]
[1727903073863,7.72,140.93,140.87,0.12502]
[1727903073864,3.5496,140.88,140.87,0.12502]
[1727903074175,27.26,140.89,140.81,0.12502]
[1727903074176,3.551,140.83,140.81,0.12502]
[1727903074464,27.26,140.83,140.81,0.12502]
[1727903075154,30.811,140.83,140.81,0.12502]
[1727903075355,7.72,140.84,140.81,0.12502]
[1727903075860,3.5509,140.83,140.81,0.12502]
[1727903076365,7.72,140.84,140.81,0.12502]
[1727903076667,27.26,140.83,140.75,0.12502]
[1727903076870,27.26,140.81,140.75,0.12502]
[1727903077165,3.5518,140.8,140.75,3.67772]
[1727903077364,27.26,140.81,140.75,3.67772]
[1727903077563,3.51171477,140.8,140.75,3.67772]
[1727903077966,3.5521,140.79,140.75,0.12502]
[1727903078161,27.26,140.79,140.75,0.12502]
[1727903078462,3.5522,140.78,140.75,0.12502]
[1727903078670,7.08451342,140.78,140.75,0.12502]
[1727903078867,7.72,140.8,140.75,0.12502]
[1727903079550,11.2716,140.8,140.75,0.12502]
[1727903079755,1.3924,140.86,140.75,27.38502]
[1727903079957,1.3924,140.86,140.76,1.3973]
[1727903080156,1.3924,140.86,140.76,2.7586]
[1727903080668,1.3924,140.86,140.77,1.3569]
[1727903081957,3.5508,140.84,140.8,3.5515]
[1727903082159,1.3924,140.86,140.77,1.3569]
[1727903082358,9.5,140.84,140.77,1.3569]
[1727903082564,3.551,140.83,140.79,3.5517]
[1727903082763,9.5,140.84,140.77,1.3569]
[1727903083159,9.5,140.84,140.76,2.7586]
[1727903083369,27.26,140.82,140.75,0.12502]
[1727903083567,3.59278875,140.81,140.75,0.12502]
[1727903083766,27.26,140.82,140.75,0.12502]
[1727903086068,3.5525,140.77,140.75,0.12502]
[1727903086270,38.51925264,140.79,140.75,0.12502]
[1727903086471,34.98,140.79,140.75,0.12502]
[1727903086771,38.4766196,140.79,140.75,0.12502]
[1727903087072,3.5526,140.76,140.75,0.12502]
[1727903088067,3.5529,140.75,140.74,1.001]
[1727903088471,3.5529,140.75,140.72,1.001]
[1727903088472,7.72,140.75,140.72,1.001]
[1727903088770,3.5534,140.73,140.72,1.001]
[1727903088973,7.72,140.75,140.69,1.12602]
[1727903088974,27.26,140.72,140.69,1.12602]
[1727903089177,7.72,140.71,140.67,1.001]
[1727903089478,3.5546,140.68,140.67,1.001]
[1727903089980,3.5554,140.65,140.64,1.001]
[1727903091580,7.72,140.66,140.64,1.001]
[1727903092586,7.74,140.7,140.64,1.001]
[1727903092783,7.74,140.7,140.66,3.555]
[1727903093084,11.23867854,140.7,140.66,3.555]
[1727903093390,3.5546,140.69,140.64,1.001]
[1727903093595,11.23867854,140.7,140.64,1.001]
[1727903093885,3.5545,140.69,140.66,3.555]
[1727903094073,11.23867854,140.7,140.64,1.001]
[1727903094886,27.26,140.69,140.64,1.001]
[1727903095093,3.5549,140.68,140.64,4.5566]
[1727903096196,3.5553,140.66,140.64,1.001]
[1727903096599,27.26,140.67,140.64,1.001]
[1727903096892,3.5552,140.66,140.64,1.001]
[1727903098393,2.7869,140.73,140.64,1.001]
[1727903098695,27.26,140.72,140.64,3.6704]
[1727903098891,27.26,140.72,140.64,2.3144]
[1727903099086,3.54446474,140.71,140.64,2.3144]
[1727903099294,3.5545,140.69,140.65,3.5553]
[1727903099495,3.5545,140.69,140.64,2.3144]
[1727903100104,3.5545,140.69,140.65,3.5553]
[1727903100801,3.5545,140.69,140.66,3.5551]
[1727903101191,3.59671991,140.7,140.64,2.3144]
[1727903101391,3.5547,140.68,140.65,3.5553]
[1727903101786,3.5544,140.7,140.64,1.001]
[1727903101997,27.26,140.67,140.64,1.001]
[1727903102393,27.26,140.65,140.64,1.001]
[1727903102714,3.5559,140.63,140.62,1.001]
[1727903102897,27.26,140.63,140.59,1.001]
[1727903103396,7.72,140.64,140.59,1.001]
[1727903104290,3.556,140.63,140.6,3.5567]
[1727903104495,7.72,140.64,140.6,3.5567]
[1727903104796,3.5563,140.62,140.6,3.5566]
[1727903104996,7.72,140.64,140.59,1.001]
[1727903105395,3.5561,140.63,140.6,3.5566]
[1727903105599,3.5561,140.63,140.59,1.001]
[1727903105994,3.5561,140.63,140.6,3.5566]
[1727903106898,27.26,140.65,140.59,1.001]
[1727903107096,27.26,140.67,140.59,1.001]
[1727903107505,27.26,140.67,140.64,3.5557]
[1727903107506,30.815,140.67,140.64,3.5557]
[1727903107701,27.26,140.67,140.59,1.001]
[1727903107898,3.5558,140.64,140.61,3.5563]
[1727903108306,7.72,140.68,140.59,1.001]
[1727903108307,27.26,140.65,140.59,1.001]
[1727903108606,27.26,140.62,140.59,1.001]
[1727903108794,30.8340719,140.62,140.59,1.001]
[1727903109197,3.5567,140.6,140.59,1.001]
[1727903109500,27.26,140.62,140.59,1.001]
[1727903109698,7.72,140.64,140.59,1.001]
[1727903109699,38.5357,140.64,140.61,3.5564]
[1727903110205,27.26,140.67,140.59,1.001]
[1727903110400,4.28532,140.69,140.59,1.001]
[1727903110401,36.52802,140.69,140.59,1.001]
[1727903110608,9.26802,140.69,140.59,1.001]
[1727903111008,3.5552,140.66,140.63,3.5557]
[1727903112301,27.26,140.67,140.59,1.001]